bitfinex-derivatives/quotes_BTCF0:USTF0_20241008
["timestamp","ask_amount","ask_price","bid_price","bid_amount"]
[1728375351889,0.05134218,62252.0,62251.0,0.080348]
[1728375352183,0.00241038,62253.0,62252.0,0.080346]
[1728375352980,0.00241038,62253.0,62252.0,1.162266]
[1728375353294,0.3608,62262.0,62261.0,0.080335]
[1728375353982,0.3608,62269.0,62268.0,0.080326]
[1728375354981,0.0305,62271.0,62268.0,0.080326]
[1728375355183,0.3608,62269.0,62268.0,0.080326]
[1728375355792,0.3648,62269.0,62268.0,0.080326]
[1728375356114,0.002,62262.0,62260.0,0.0037]
[1728375356297,0.002,62262.0,62261.0,0.080335]
[1728375356595,0.3628,62262.0,62261.0,0.080335]
[1728375356891,0.5508,62262.0,62261.0,0.080335]
[1728375359891,0.3608,62262.0,62261.0,0.080335]
[1728375361084,0.3608,62263.0,62261.0,0.080335]
[1728375361687,0.3608,62263.0,62260.0,0.080335]
[1728375361888,0.3608,62263.0,62253.0,0.0037]
[1728375362196,0.3608,62263.0,62252.0,0.0321]
[1728375362197,0.3608,62257.0,62252.0,0.0321]
[1728375362399,0.3608,62257.0,62256.0,0.080341]
[1728375362599,0.3608,62263.0,62262.0,0.080333]
[1728375363091,0.3618,62263.0,62262.0,0.080333]
[1728375363684,0.3608,62263.0,62262.0,0.080333]
[1728375363885,0.3608,62263.0,62254.0,0.0037]
[1728375364089,0.3608,62263.0,62252.0,0.0321]
[1728375364090,0.19,62261.0,62255.0,0.080342]
[1728375364420,0.3608,62256.0,62255.0,0.080342]
[1728375364691,0.5508,62256.0,62255.0,0.080342]
[1728375365096,0.5508,62256.0,62247.0,0.3645]
[1728375365299,0.3608,62256.0,62255.0,0.080342]
[1728375366386,0.3618,62263.0,62262.0,0.080333]
[1728375367587,0.3608,62263.0,62262.0,0.080333]
[1728375368397,0.3658,62263.0,62262.0,0.080333]
[1728375369193,0.0633,62274.0,62262.0,0.562173]
[1728375369391,0.0633,62274.0,62273.0,0.080319]
[1728375371092,0.0733,62274.0,62273.0,0.080319]
[1728375372100,0.0833,62274.0,62273.0,0.080319]
[1728375372290,0.2733,62274.0,62273.0,0.080319]
[1728375372800,0.2733,62274.0,62265.0,0.0037]
[1728375372997,0.2733,62274.0,62272.0,0.08032]
[1728375374016,0.2733,62274.0,62267.0,0.080327]
[1728375374202,0.3608,62268.0,62267.0,0.080327]
[1728375374900,0.3608,62268.0,62261.0,0.0037]
[1728375375095,0.0315,62267.0,62257.0,0.19]
[1728375375295,0.3608,62261.0,62260.0,0.080336]
[1728375375690,0.0315,62267.0,62266.0,0.080328]
[1728375377107,0.0345,62267.0,62266.0,0.080328]
[1728375377604,0.003,62267.0,62266.0,0.080328]
[1728375378196,0.005,62267.0,62266.0,0.080328]
[1728375379194,0.005,62267.0,62266.0,0.270328]
[1728375379394,0.02071484,62275.0,62266.0,0.631128]
[1728375379607,0.3608,62282.0,62266.0,0.631128]
[1728375379608,0.04014194,62279.0,62278.0,0.080313]
[1728375379808,0.04014194,62279.0,62278.0,0.270313]
[1728375380596,0.04014194,62279.0,62278.0,0.752033]
[1728375381099,0.05414194,62279.0,62278.0,0.752033]
[1728375381302,0.05414194,62279.0,62278.0,0.81592811]
[1728375381502,0.06814194,62279.0,62278.0,0.752033]
[1728375382404,0.06814194,62279.0,62278.0,0.080313]
[1728375384606,0.06814194,62279.0,62278.0,0.270313]
[1728375385810,0.06814194,62279.0,62278.0,0.28918038]
[1728375390902,0.06814194,62279.0,62278.0,0.09918038]
[1728375391102,0.61894194,62279.0,62274.0,0.080318]
[1728375391312,0.19,62275.0,62274.0,0.080318]
[1728375391513,0.19,62275.0,62273.0,0.01887308]
[1728375391514,0.0612,62278.0,62277.0,0.080314]
[1728375391713,0.42978194,62279.0,62278.0,0.080313]
[1728375391908,0.42894194,62279.0,62278.0,0.080313]
[1728375392813,0.41494194,62279.0,62278.0,0.080313]
[1728375393013,0.42894194,62279.0,62278.0,0.080313]
[1728375393209,0.42894194,62279.0,62274.0,0.001]
[1728375393210,0.61894194,62279.0,62274.0,0.001]
[1728375393409,0.19,62275.0,62274.0,0.081317]
[1728375393717,0.19,62275.0,62270.0,0.0037]
[1728375393718,0.3608,62276.0,62270.0,0.19]
[1728375393912,0.3608,62276.0,62275.0,0.270317]
[1728375394912,0.3728,62276.0,62275.0,0.270317]
[1728375395113,0.012,62276.0,62275.0,0.270317]
[1728375395510,0.012,62276.0,62275.0,0.33421211]
[1728375396510,0.012,62276.0,62275.0,0.33521211]
[1728375396717,0.023,62276.0,62275.0,0.33521211]
[1728375396911,0.023,62276.0,62275.0,0.271317]
[1728375399620,0.04014194,62279.0,62278.0,0.080313]
[1728375399819,0.0307,62285.0,62284.0,0.080305]
[1728375400055,0.0307,62285.0,62284.0,0.270305]
[1728375400231,0.0037,62296.0,62285.0,0.080304]
[1728375400527,0.0037,62296.0,62284.0,1.27168]
[1728375400528,0.0037,62299.0,62295.0,0.19]
[1728375400731,0.3608,62300.0,62298.0,0.19]
[1728375400910,0.3608,62300.0,62294.0,0.270292]
[1728375401115,0.3608,62300.0,62294.0,0.080292]
[1728375401424,0.3608,62300.0,62298.0,0.080287]
[1728375401726,0.014,62299.0,62298.0,0.080287]
[1728375401912,0.014,62299.0,62291.0,0.0037]
[1728375402111,0.014,62299.0,62288.0,0.3608]
[1728375402112,0.3608,62293.0,62288.0,0.0639012]
[1728375402424,0.3608,62293.0,62291.0,0.080295]
[1728375402615,0.2858,62298.0,62291.0,0.080295]
[1728375402921,0.3608,62295.0,62291.0,0.080295]
[1728375403824,0.3608,62295.0,62291.0,0.081295]
[1728375404025,0.3608,62293.0,62291.0,0.001]
[1728375404219,0.080295,62292.0,62291.0,0.001]
[1728375404419,0.080295,62292.0,62291.0,0.002]
[1728375405225,0.080295,62292.0,62291.0,0.001]
[1728375405421,0.080295,62292.0,62291.0,0.002]
[1728375406323,0.088295,62292.0,62291.0,0.002]
[1728375406519,0.008,62292.0,62291.0,0.002]
[1728375407021,0.02,62292.0,62291.0,0.002]
[1728375408119,0.02,62292.0,62291.0,0.563896]
[1728375408325,0.0321,62298.0,62297.0,0.080288]
[1728375408513,0.0321,62298.0,62297.0,0.270288]
[1728375408820,0.0321,62298.0,62293.0,0.080293]
[1728375409015,0.3608,62294.0,62293.0,0.080293]
[1728375409430,0.3608,62294.0,62291.0,0.002]
[1728375409622,0.0628,62293.0,62291.0,0.001]
[1728375409827,0.0628,62293.0,62291.0,0.081296]
[1728375410033,0.0628,62293.0,62291.0,0.001]
[1728375410223,0.0628,62293.0,62292.0,0.080295]
[1728375411423,0.0668,62293.0,62292.0,0.081295]
[1728375412426,0.004,62293.0,62292.0,0.081295]
[1728375412729,0.004,62293.0,62292.0,0.082295]
[1728375415729,0.04012905,62299.0,62292.0,1.163895]
[1728375415933,0.04012905,62299.0,62298.0,0.080287]
[1728375416330,0.37959324,62308.0,62298.0,0.561847]
[1728375416331,0.3608,62308.0,62298.0,0.561847]
[1728375416530,0.0037,62311.0,62310.0,0.080272]
[1728375416841,0.0946,62314.0,62313.0,0.080268]
[1728375416842,0.0315,62314.0,62313.0,0.080268]
[1728375417049,0.0624,62322.0,62316.0,0.080264]
[1728375417234,0.093,62322.0,62316.0,0.080264]
[1728375417533,0.093,62322.0,62317.0,0.080262]
[1728375417734,0.11190238,62322.0,62317.0,0.080262]
[1728375418240,0.11190238,62322.0,62318.0,0.080261]
[1728375418440,0.11190238,62322.0,62316.0,0.001]
[1728375418841,0.080258,62321.0,62317.0,0.001]
[1728375419041,0.080259,62320.0,62317.0,0.001]
[1728375419634,0.080259,62320.0,62316.0,0.001]
[1728375419635,0.080259,62320.0,62316.0,0.002]
[1728375419831,0.094,62322.0,62317.0,0.19]
[1728375420036,0.095,62322.0,62321.0,0.080257]
[1728375420240,0.095,62322.0,62321.0,0.270257]
[1728375420241,0.0642,62322.0,62321.0,0.270257]
[1728375420634,0.001,62322.0,62321.0,0.270257]
[1728375421337,0.001,62322.0,62321.0,0.271257]
[1728375421742,0.001,62322.0,62321.0,0.270257]
[1728375421936,0.3913,62329.0,62327.0,0.080249]
[1728375422138,0.3913,62329.0,62327.0,0.270249]
[1728375422988,0.3913,62329.0,62328.0,0.080248]
[1728375423140,0.36320751,62336.0,62327.0,0.19]
[1728375423141,0.36320751,62336.0,62333.0,0.080241]
[1728375423644,0.36320751,62336.0,62331.0,0.19]
[1728375423842,0.36320751,62336.0,62328.0,0.270248]
[1728375424344,0.002,62329.0,62328.0,0.271248]
[1728375424752,0.001,62329.0,62328.0,0.270248]
[1728375425154,0.36520751,62336.0,62331.0,0.080244]
[1728375425562,0.36520751,62336.0,62328.0,0.191]
[1728375425861,0.36420751,62336.0,62335.0,0.270239]
[1728375427357,0.36420751,62336.0,62335.0,0.080239]
[1728375427755,0.36520751,62336.0,62332.0,0.19]
[1728375427956,0.36420751,62336.0,62332.0,0.19]
[1728375428152,0.36520751,62336.0,62335.0,0.001]
[1728375429052,0.36420751,62336.0,62335.0,0.001]
[1728375429257,0.36520751,62336.0,62335.0,0.002]
[1728375429862,0.55520751,62336.0,62335.0,0.002]
[1728375430166,0.55520751,62336.0,62335.0,0.001]
[1728375430767,0.55520751,62336.0,62335.0,0.002]
[1728375431675,1.63648751,62336.0,62335.0,0.002]
[1728375431864,0.19,62329.0,62328.0,0.0037]
[1728375432056,0.19,62329.0,62328.0,0.080248]
[1728375432057,0.3608,62329.0,62328.0,0.080248]
[1728375434169,0.3648,62329.0,62328.0,0.082248]
[1728375435970,0.004,62329.0,62328.0,0.443048]
[1728375436159,0.004,62329.0,62328.0,0.476048]
[1728375436562,0.004,62329.0,62328.0,0.506548]
[1728375439064,0.004,62329.0,62328.0,0.52522881]
[1728375440067,0.00240751,62336.0,62335.0,0.270239]
[1728375440269,0.00240751,62336.0,62335.0,0.260239]
[1728375440480,0.00240751,62336.0,62335.0,0.270239]
[1728375440670,0.00240751,62336.0,62335.0,0.300339]
[1728375440975,0.00240751,62336.0,62335.0,0.290339]
[1728375441176,0.0037,62347.0,62346.0,0.080225]
[1728375441385,0.0037,62347.0,62336.0,0.080238]
[1728375441386,0.0308,62351.0,62350.0,0.08022]
[1728375441573,0.0308,62351.0,62350.0,0.26022]
[1728375442068,0.14621318,62360.0,62350.0,0.18]
[1728375442069,0.37893515,62355.0,62350.0,0.18]
[1728375442272,0.37893515,62355.0,62354.0,0.18]
[1728375442873,0.37893515,62355.0,62354.0,0.260215]
[1728375443372,0.3608,62355.0,62354.0,0.260215]
[1728375445286,0.3608,62355.0,62354.0,0.261215]
[1728375445475,0.3608,62355.0,62354.0,0.081215]
[1728375447274,0.3608,62355.0,62354.0,0.082215]
[1728375453691,0.3608,62355.0,62354.0,0.002]
[1728375453692,0.5508,62355.0,62354.0,0.002]
[1728375453894,0.080215,62354.0,62347.0,0.0037]
[1728375454188,0.19,62348.0,62343.0,0.0037]
[1728375454375,0.3618,62355.0,62343.0,0.080228]
[1728375454376,0.19,62344.0,62343.0,0.080228]
[1728375454582,0.0613,62347.0,62341.0,0.36320589]
[1728375454884,0.0613,62347.0,62346.0,0.080225]
[1728375456585,0.0613,62347.0,62341.0,0.36420589]
[1728375456586,0.080226,62346.0,62341.0,0.00340589]
[1728375456787,0.3608,62342.0,62341.0,0.00340589]
[1728375457485,0.3608,62342.0,62341.0,0.00240589]
[1728375457989,0.3628,62342.0,62341.0,0.00340589]
[1728375458198,0.3648,62342.0,62341.0,0.00440589]
[1728375462381,0.004,62342.0,62341.0,0.26463789]
[1728375462905,0.004,62342.0,62341.0,0.32843519]
[1728375463084,0.004,62342.0,62341.0,0.26463789]
[1728375463286,0.004,62342.0,62341.0,0.74587789]
[1728375464087,0.004,62342.0,62341.0,0.26463789]
[1728375464289,0.004,62342.0,62341.0,0.08463789]
[1728375464895,0.004,62342.0,62341.0,0.26463789]
[1728375465986,0.004,62342.0,62341.0,0.262232]
[1728375466195,0.004,62342.0,62341.0,0.34227279]
[1728375466497,0.004,62342.0,62341.0,0.262232]
[1728375471697,0.004,62342.0,62341.0,0.32610725]
[1728375471994,0.004,62342.0,62341.0,0.3261061]
[1728375473786,0.004,62342.0,62341.0,0.262232]
[1728375473991,0.0037,62356.0,62341.0,1.73579484]
[1728375474185,0.0037,62360.0,62355.0,0.080214]
[1728375474388,0.3608,62366.0,62355.0,0.080214]
[1728375474389,0.3608,62366.0,62363.0,0.080202]
[1728375474588,0.3608,62366.0,62365.0,0.18]
[1728375474893,0.3608,62366.0,62365.0,0.260201]
[1728375475197,0.0037,62373.0,62365.0,0.18]
[1728375475198,0.3645,62373.0,62365.0,0.18]
[1728375475495,0.3608,62373.0,62372.0,0.18]
[1728375476901,0.0323,62376.0,62372.0,0.18]
[1728375477199,0.0323,62376.0,62372.0,0.261191]
[1728375477994,0.0037,62385.0,62372.0,0.182]
[1728375478193,0.3608,62391.0,62383.0,0.18]
[1728375478194,0.01818975,62387.0,62383.0,0.18]
[1728375479487,0.01818975,62387.0,62383.0,0.181]
[1728375480602,0.01818975,62387.0,62383.0,0.182]
[1728375481799,0.01818975,62387.0,62383.0,0.002]
[1728375482899,1.0832851,62384.0,62375.0,0.0037]
[1728375483111,1.0832851,62384.0,62372.0,0.0037]
[1728375483112,0.18,62377.0,62372.0,0.0037]
[1728375483404,0.18,62377.0,62369.0,0.3618]
[1728375483405,0.0623,62376.0,62369.0,0.3618]
[1728375483605,0.0623,62376.0,62369.0,0.3608]
[1728375483796,0.0329,62375.0,62369.0,0.3608]
[1728375484399,0.0329,62375.0,62370.0,0.080193]
[1728375485199,0.0329,62375.0,62371.0,0.080193]
[1728375485407,0.0329,62375.0,62372.0,0.001]
[1728375485904,0.0329,62375.0,62371.0,0.080193]
[1728375486407,0.0329,62375.0,62372.0,0.260191]
[1728375486705,0.0339,62375.0,62372.0,0.261191]
[1728375488116,0.0339,62375.0,62372.0,0.182]
[1728375488311,0.0339,62375.0,62372.0,0.262191]
[1728375488998,0.0339,62375.0,62373.0,0.08019]
[1728375490208,0.0329,62375.0,62373.0,0.08119]
[1728375491098,0.0329,62375.0,62373.0,0.08219]
[1728375491697,0.0329,62375.0,62373.0,0.002]
[1728375491899,0.0329,62375.0,62374.0,0.080189]
[1728375493105,0.0329,62375.0,62374.0,0.081189]
[1728375494310,0.0329,62375.0,62374.0,0.082189]
[1728375499913,0.0329,62375.0,62374.0,0.262189]
[1728375500103,0.3608,62383.0,62381.0,0.08018]
[1728375500417,0.3608,62383.0,62382.0,0.18]
[1728375500418,0.37937901,62383.0,62382.0,0.18]
[1728375500811,0.37937901,62383.0,62382.0,0.260179]
[1728375502016,0.37937901,62383.0,62382.0,0.261179]
[1728375503804,0.37937901,62383.0,62382.0,0.262179]
[1728375504213,0.37937901,62383.0,62382.0,0.31005909]
[1728375505116,0.01857901,62383.0,62382.0,0.31005909]
[1728375505310,0.3608,62383.0,62382.0,0.002]
[1728375505823,0.440978,62383.0,62382.0,0.002]
[1728375506006,0.080183,62379.0,62374.0,0.05159909]
[1728375506214,0.3608,62376.0,62374.0,0.04789909]
[1728375507215,0.3608,62376.0,62374.0,0.04889909]
[1728375507610,0.3618,62376.0,62374.0,0.04989909]
[1728375507811,0.3618,62376.0,62374.0,0.002]
[1728375508933,0.3628,62376.0,62374.0,0.04989909]
[1728375509918,0.3628,62376.0,62374.0,0.002]
[1728375510227,0.18,62375.0,62374.0,0.002]
[1728375510515,0.260188,62375.0,62374.0,0.002]
[1728375511517,0.260188,62375.0,62367.0,0.05159909]
[1728375511518,0.18,62370.0,62367.0,0.05159909]
[1728375511838,0.18,62370.0,62360.0,0.05159909]
[1728375511839,0.080198,62367.0,62360.0,0.05159909]
[1728375512021,0.3608,62362.0,62361.0,0.080206]
[1728375513020,0.3608,62362.0,62360.0,0.04789909]
[1728375513219,0.3608,62362.0,62360.0,0.12810509]
[1728375513518,0.3618,62362.0,62360.0,0.080206]
[1728375513719,0.3618,62362.0,62357.0,0.04789909]
[1728375513911,0.3618,62362.0,62358.0,0.04789909]
[1728375514117,0.3618,62362.0,62357.0,0.12811009]
[1728375514526,0.18,62360.0,62354.0,0.12811409]
[1728375514731,0.18,62360.0,62355.0,0.080213]
[1728375515026,0.36364,62362.0,62359.0,0.080208]
[1728375515326,0.36364,62362.0,62360.0,0.080206]
[1728375515327,0.3658,62362.0,62360.0,0.080206]
[1728375515519,0.3638,62362.0,62360.0,0.080206]
[1728375515922,0.3608,62362.0,62360.0,0.080206]
[1728375516119,0.3608,62362.0,62356.0,0.22789909]
[1728375516326,0.3608,62362.0,62356.0,0.30811109]
[1728375516518,0.3608,62362.0,62356.0,0.260212]
[1728375516724,0.3608,62362.0,62357.0,0.080211]
[1728375516922,0.3638,62362.0,62357.0,0.080211]
[1728375517621,0.3638,62362.0,62356.0,0.18]
[1728375517929,0.3658,62362.0,62356.0,0.260212]
[1728375518231,0.3638,62362.0,62356.0,0.260212]
[1728375518522,0.3648,62362.0,62356.0,0.260212]
[1728375519614,0.004,62362.0,62356.0,0.260212]
[1728375519820,0.3648,62362.0,62356.0,0.260212]
[1728375520128,0.38354341,62362.0,62356.0,0.260212]
[1728375523028,0.3648,62362.0,62361.0,0.080206]
[1728375523329,0.004,62362.0,62361.0,0.080206]
[1728375523523,0.004,62362.0,62361.0,0.143406]
[1728375524729,0.004,62362.0,62361.0,0.110806]
[1728375531929,0.004,62362.0,62361.0,0.080206]
[1728375532130,0.004,62362.0,62351.0,0.07980015]
[1728375532131,0.004,62362.0,62354.0,0.05159909]
[1728375532430,0.3608,62358.0,62357.0,0.080211]
[1728375532829,0.3608,62358.0,62352.0,0.04789909]
[1728375533030,0.3608,62358.0,62354.0,0.080214]
[1728375533231,0.3608,62357.0,62355.0,0.080213]
[1728375534636,0.3608,62357.0,62356.0,0.080212]
[1728375534833,0.08362314,62361.0,62352.0,0.04789909]
[1728375534834,0.3608,62358.0,62355.0,0.18]
[1728375535153,0.08362314,62361.0,62359.0,0.080208]
[1728375535331,0.41142314,62361.0,62359.0,0.080208]
[1728375535725,0.37922314,62361.0,62359.0,0.18]
[1728375535937,0.3608,62363.0,62361.0,0.080205]
[1728375536238,0.3608,62363.0,62362.0,0.260205]
[1728375536827,0.0623,62368.0,62363.0,0.080203]
[1728375536828,0.3608,62364.0,62363.0,0.080203]
[1728375537532,0.08123133,62368.0,62362.0,0.18]
[1728375537842,0.0317,62369.0,62368.0,0.080197]
[1728375538353,0.3608,62371.0,62370.0,0.080194]
[1728375540427,0.3628,62371.0,62370.0,0.081194]
[1728375540626,0.3628,62371.0,62370.0,0.04889909]
[1728375541131,0.3628,62371.0,62370.0,0.001]
[1728375541334,0.3648,62371.0,62370.0,0.002]
[1728375542337,0.3648,62371.0,62370.0,0.082194]
[1728375543041,0.3648,62371.0,62370.0,0.002]
[1728375543554,0.3648,62371.0,62370.0,0.082194]
[1728375543555,0.004,62371.0,62370.0,0.082194]
[1728375543729,0.004,62371.0,62370.0,0.14603412]
[1728375544035,0.0037,62380.0,62379.0,0.080183]
[1728375544264,0.0321,62383.0,62381.0,0.08018]
[1728375544837,0.0321,62383.0,62379.0,0.18]
[1728375545144,0.002,62380.0,62379.0,0.181]
[1728375546040,0.002,62380.0,62379.0,0.182]
[1728375546435,0.002,62380.0,62379.0,0.262183]
[1728375546634,0.004,62380.0,62379.0,0.262183]
[1728375547137,0.002,62380.0,62379.0,0.30900752]
[1728375547333,0.002,62380.0,62379.0,0.262183]
[1728375548034,0.0024051,62384.0,62379.0,1.26192]
[1728375548242,0.0024051,62384.0,62383.0,0.18]
[1728375548943,0.0024051,62384.0,62382.0,0.080179]
[1728375549148,0.0024051,62384.0,62378.0,0.080184]
[1728375549442,0.0322,62383.0,62378.0,0.080184]
[1728375551636,0.0322,62383.0,62376.0,0.18]
[1728375551935,0.0322,62383.0,62379.0,0.080183]
[1728375552138,0.0322,62383.0,62376.0,0.18]
[1728375552443,0.0322,62383.0,62380.0,0.080181]
[1728375553132,0.09826131,62389.0,62380.0,0.080181]
[1728375553133,0.01809131,62389.0,62380.0,0.5408]
[1728375553339,0.3608,62394.0,62380.0,0.5408]
[1728375553340,0.0623,62391.0,62388.0,0.080171]
[1728375553529,0.08098827,62391.0,62388.0,0.080171]
[1728375554147,0.08098827,62391.0,62389.0,0.08017]
[1728375555136,0.08098827,62391.0,62390.0,0.04009398]
[1728375555340,0.0309,62391.0,62390.0,0.04009398]
[1728375555642,0.0309,62391.0,62389.0,0.001]
[1728375555835,0.0309,62391.0,62389.0,0.002]
[1728375556435,0.0309,62391.0,62390.0,0.001]
[1728375556742,0.04943583,62391.0,62390.0,0.001]
[1728375556943,0.04943583,62391.0,62390.0,0.002]
[1728375557174,0.04943583,62391.0,62382.0,0.0037]
[1728375557175,0.22943583,62391.0,62382.0,0.0037]
[1728375557344,0.3608,62387.0,62380.0,0.080181]
[1728375557543,0.0317,62386.0,62380.0,0.080181]
[1728375558541,0.0631,62386.0,62380.0,0.081181]
[1728375558842,0.0631,62386.0,62380.0,0.082181]
[1728375559139,0.0631,62386.0,62380.0,0.081181]
[1728375559339,0.0631,62386.0,62380.0,0.082181]
[1728375560533,0.18,62382.0,62380.0,0.002]
[1728375560842,0.260179,62382.0,62380.0,0.002]
[1728375561738,0.260179,62382.0,62380.0,0.001]
[1728375561739,0.262179,62382.0,62380.0,0.001]
[1728375561950,0.264179,62382.0,62376.0,0.0037]
[1728375562244,0.264179,62382.0,62375.0,0.3608]
[1728375562734,0.3608,62376.0,62372.0,0.0037]
[1728375562940,0.0327,62375.0,62370.0,0.08259869]
[1728375563545,0.0654,62374.0,62370.0,0.08259869]
[1728375564035,0.0654,62374.0,62370.0,0.08559869]
[1728375564748,0.0654,62374.0,62370.0,0.08259869]
[1728375564943,0.3608,62373.0,62370.0,0.09159869]
[1728375565745,0.3608,62373.0,62370.0,0.01140469]
[1728375566546,0.3608,62373.0,62370.0,0.01240469]
[1728375568343,0.08420843,62374.0,62370.0,0.00740469]
[1728375568553,0.3608,62373.0,62370.0,0.01340469]
[1728375568944,0.3608,62372.0,62370.0,0.01340469]
[1728375569549,0.3608,62372.0,62370.0,0.01140469]
[1728375570054,0.3608,62372.0,62370.0,0.01340469]
[1728375570238,0.3608,62372.0,62370.0,0.00940469]
[1728375570461,0.3608,62372.0,62370.0,0.01540469]
[1728375570640,0.620993,62371.0,62370.0,0.01540469]
[1728375571551,0.0802,62366.0,62364.0,0.0037]
[1728375571749,0.3608,62365.0,62360.0,0.0037]
[1728375571953,0.3608,62365.0,62357.0,0.22782452]
[1728375571954,0.3608,62365.0,62359.0,0.080208]
[1728375572138,0.3608,62365.0,62361.0,0.18]
[1728375572542,0.3608,62365.0,62364.0,0.18]
[1728375573046,0.05480843,62374.0,62370.0,0.080194]
[1728375573253,0.3935,62375.0,62371.0,0.080193]
[1728375573449,0.3935,62375.0,62374.0,0.18]
[1728375574756,0.3608,62375.0,62374.0,0.18]
[1728375576152,0.004,62375.0,62374.0,0.18]
[1728375576454,0.006,62375.0,62371.0,0.080193]
[1728375576654,0.004,62375.0,62371.0,0.080193]
[1728375576855,0.006,62375.0,62371.0,0.080193]
[1728375577250,0.3608,62372.0,62371.0,0.080193]
[1728375578748,0.3608,62372.0,62370.0,0.18]
[1728375579162,0.3608,62372.0,62367.0,0.080198]
[1728375579461,0.3608,62370.0,62367.0,0.080198]
[1728375580362,0.3608,62370.0,62369.0,0.080196]
[1728375580554,0.001,62372.0,62366.0,0.2113]
[1728375580555,0.3618,62372.0,62366.0,0.2113]
[1728375580949,0.3618,62372.0,62366.0,0.25912452]
[1728375581149,0.3618,62372.0,62366.0,0.291499]
[1728375581854,0.3618,62372.0,62367.0,0.003]
[1728375582249,0.3608,62372.0,62367.0,0.004]
[1728375582668,0.3608,62372.0,62367.0,0.001]
[1728375583164,0.3618,62372.0,62365.0,0.0305]
[1728375583460,0.3618,62372.0,62367.0,0.001]
[1728375584549,0.3618,62372.0,62370.0,0.18]
[1728375584756,0.3618,62372.0,62367.0,0.001]
[1728375584951,0.3618,62372.0,62367.0,0.04782452]
[1728375585779,0.3618,62372.0,62370.0,0.001]
[1728375586263,0.3618,62372.0,62368.0,0.04782452]
[1728375587063,0.001,62372.0,62368.0,0.04782452]
[1728375587357,0.001,62372.0,62369.0,0.04782452]
[1728375587358,0.3618,62372.0,62369.0,0.04782452]
[1728375587956,0.3618,62372.0,62370.0,0.001]
[1728375588556,0.3618,62372.0,62369.0,0.04782452]
[1728375588557,0.3618,62372.0,62369.0,0.04882452]
[1728375589249,0.3618,62372.0,62370.0,0.04882452]
[1728375589661,0.3618,62372.0,62370.0,0.04782452]
[1728375590260,0.3618,62372.0,62371.0,0.04782452]
[1728375591064,0.3618,62372.0,62371.0,0.080193]
[1728375591273,0.3618,62372.0,62371.0,0.12801752]
[1728375591659,0.3618,62372.0,62371.0,0.04782452]
[1728375591963,0.3618,62372.0,62371.0,0.001]
[1728375592556,0.3608,62372.0,62371.0,0.004]
[1728375592767,0.3608,62372.0,62371.0,0.006]
[1728375592958,0.3608,62372.0,62371.0,0.05382452]
[1728375595857,0.3608,62372.0,62371.0,0.006]
[1728375596071,0.3608,62372.0,62371.0,0.086193]
[1728375598071,0.3608,62377.0,62371.0,0.05397828]
[1728375598277,0.3608,62377.0,62376.0,0.260187]
[1728375598466,0.3608,62377.0,62376.0,0.30815971]
[1728375598867,0.3608,62377.0,62374.0,0.06384247]
[1728375599070,0.3608,62377.0,62376.0,0.04797788]
[1728375599264,0.3608,62377.0,62375.0,0.12816588]
[1728375599265,0.3638,62377.0,62375.0,0.12816588]
[1728375599576,0.3648,62377.0,62375.0,0.12816588]
[1728375600271,0.3648,62377.0,62376.0,0.0078958]
[1728375600476,0.3648,62377.0,62376.0,0.2680828]
[1728375600773,0.004,62377.0,62376.0,0.32402947]
[1728375601274,0.004,62377.0,62376.0,0.260187]
[1728375601467,0.004,62377.0,62376.0,0.32414574]
[1728375602170,0.003,62377.0,62376.0,0.260187]
[1728375602380,0.003,62377.0,62376.0,0.45092699]
[1728375602577,0.003,62377.0,62376.0,0.40132684]
[1728375603277,0.003,62377.0,62376.0,0.48121339]
[1728375603573,0.003,62377.0,62376.0,1.56217339]
[1728375603775,0.03,62392.0,62387.0,0.080172]
[1728375603976,0.03,62392.0,62384.0,0.24390273]
[1728375604171,0.03,62392.0,62391.0,0.260167]
[1728375604767,0.3608,62393.0,62391.0,0.260167]
[1728375605169,0.00096001,62400.0,62391.0,0.18]
[1728375605403,0.0327,62403.0,62399.0,0.260157]
[1728375607884,0.0377,62403.0,62399.0,0.261157]
[1728375608175,0.0427,62403.0,62399.0,0.002]
[1728375610474,0.18,62401.0,62399.0,0.002]
[1728375611875,0.186,62401.0,62399.0,0.002]
[1728375612278,0.191,62401.0,62399.0,0.002]
[1728375613377,0.271155,62401.0,62399.0,0.002]
[1728375614684,0.080156,62400.0,62399.0,0.002]
[1728375615798,0.085156,62400.0,62399.0,0.002]
[1728375615988,0.091156,62400.0,62399.0,0.002]
[1728375616191,1.171916,62400.0,62394.0,0.0037]
[1728375616376,0.18,62393.0,62385.0,0.0112]
[1728375616681,0.3608,62395.0,62381.0,0.08018]
[1728375616682,0.18,62387.0,62381.0,0.08018]
[1728375616880,0.3608,62382.0,62381.0,0.08018]
[1728375617483,0.0314,62386.0,62381.0,0.08018]
[1728375617785,0.0314,62386.0,62385.0,0.001]
[1728375618086,0.0314,62386.0,62381.0,0.08018]
[1728375618391,0.006,62382.0,62381.0,0.08018]
[1728375618882,0.5408,62383.0,62381.0,0.001]
[1728375619082,0.5408,62383.0,62381.0,0.002]
[1728375619582,0.007,62382.0,62381.0,0.002]
[1728375621180,0.006,62382.0,62381.0,0.08218]
[1728375622188,0.012,62382.0,62381.0,0.08218]
[1728375626591,0.080163,62395.0,62381.0,0.08218]